bitfinex-derivatives/quotes_BTCF0:USTF0_20240824
["timestamp","ask_amount","ask_price","bid_price","bid_amount"]
[1724514016694,0.3628,63997.0,63991.0,0.0457]
[1724514017100,0.078126,63970.0,63969.0,0.0244175]
[1724514017300,0.078126,63970.0,63962.0,0.00014757]
[1724514017503,0.3608,63967.0,63962.0,0.00014757]
[1724514019595,4e-05,63967.0,63962.0,0.00014757]
[1724514020804,0.00104,63967.0,63962.0,0.00014757]
[1724514021099,0.00204,63967.0,63962.0,0.00014757]
[1724514021304,0.00204,63967.0,63963.0,0.22]
[1724514022206,0.00204,63967.0,63965.0,0.078131]
[1724514022702,0.00023449,63976.0,63966.0,0.981]
[1724514022908,0.00023449,63976.0,63974.0,0.078121]
[1724514023301,0.00023449,63976.0,63975.0,0.3608]
[1724514023704,0.00023449,63976.0,63975.0,0.82972]
[1724514023901,0.078105,63988.0,63976.0,0.078119]
[1724514024109,0.078105,63988.0,63978.0,0.078116]
[1724514024308,0.07813,63967.0,63966.0,0.11204]
[1724514024603,0.65893,63967.0,63966.0,0.11204]
[1724514024807,0.65993,63967.0,63966.0,0.11204]
[1724514026606,0.5818,63967.0,63966.0,0.11204]
[1724514026801,0.5818,63967.0,63966.0,0.11404]
[1724514026802,0.5828,63967.0,63966.0,0.11404]
[1724514028405,0.5828,63967.0,63950.0,0.08476557]
[1724514028406,1.2028,63967.0,63950.0,0.08476557]
[1724514028610,0.9416,63951.0,63926.0,0.07818]
[1724514028906,0.3608,63937.0,63925.0,0.07818]
[1724514029096,0.3608,63937.0,63932.0,0.078172]
[1724514029503,0.36093961,63937.0,63932.0,0.078172]
[1724514029700,0.36093961,63937.0,63935.0,0.078169]
[1724514030511,0.00013961,63937.0,63935.0,0.078169]
[1724514030707,0.00023449,63943.0,63936.0,1.063367]
[1724514030909,0.00023449,63943.0,63936.0,0.42996965]
[1724514031110,0.001,63937.0,63936.0,0.42996965]
[1724514031313,0.271,63937.0,63936.0,0.11586039]
[1724514031516,0.271,63937.0,63901.0,0.27]
[1724514031517,0.941,63937.0,63910.0,0.00798259]
[1724514031809,0.941,63937.0,63901.0,0.0485]
[1724514031810,0.708997,63912.0,63901.0,0.0485]
[1724514032203,0.708997,63912.0,63906.0,0.0265197]
[1724514032204,0.4694,63911.0,63906.0,0.0265197]
[1724514032504,0.439003,63907.0,63906.0,0.0265197]
[1724514032811,0.3608,63907.0,63906.0,0.0265197]
[1724514033012,1.23024,63907.0,63906.0,0.0265197]
[1724514033311,1.23038466,63907.0,63906.0,0.0265197]
[1724514033707,0.36094466,63907.0,63906.0,0.0265197]
[1724514034209,0.00014466,63907.0,63906.0,0.0265197]
[1724514034406,0.00014466,63907.0,63906.0,0.0105197]
[1724514034806,0.3608,63912.0,63906.0,0.0568197]
[1724514035007,0.0002347,63918.0,63914.0,0.078194]
[1724514035209,0.0002347,63918.0,63915.0,0.078193]
[1724514035408,0.0002347,63918.0,63910.0,0.3608]
[1724514035609,0.0002347,63918.0,63911.0,0.0479]
[1724514035811,0.0002347,63918.0,63916.0,0.078191]
[1724514036011,0.0002347,63918.0,63911.0,0.0479]
[1724514036012,0.3608,63926.0,63921.0,0.078185]
[1724514036615,0.3608,63926.0,63918.0,0.3608]
[1724514037113,0.3608,63926.0,63924.0,0.078182]
[1724514038513,0.3638,63926.0,63924.0,0.078182]
[1724514038912,0.3608,63926.0,63924.0,0.078182]
[1724514039112,0.3618,63926.0,63924.0,0.079182]
[1724514040314,0.0002347,63928.0,63926.0,0.07818]
[1724514040615,0.3608,63936.0,63934.0,0.07817]
[1724514041212,0.3608,63936.0,63935.0,0.0466]
[1724514041816,0.3638,63936.0,63935.0,0.0466]
[1724514042314,0.3608,63936.0,63935.0,0.0466]
[1724514042514,0.3648,63936.0,63935.0,0.0466]
[1724514042924,0.3648,63936.0,63935.0,0.0919]
[1724514044213,0.004,63936.0,63935.0,0.0919]
[1724514046524,0.0002347,63942.0,63935.0,0.0919]
[1724514046816,0.0002347,63942.0,63941.0,0.078162]
[1724514048025,0.0042347,63942.0,63941.0,0.078162]
[1724514048218,0.0042347,63942.0,63941.0,0.547322]
[1724514048423,0.3608,63953.0,63952.0,0.078148]
[1724514050320,0.82988,63953.0,63946.0,0.0002347]
[1724514050521,0.3608,63947.0,63946.0,0.0783907]
[1724514051023,0.36084,63947.0,63946.0,0.0783907]
[1724514051726,4e-05,63947.0,63946.0,0.0783907]
[1724514052116,4e-05,63947.0,63946.0,0.0833907]
[1724514054523,4e-05,63947.0,63946.0,0.39633702]
[1724514055020,0.0002347,63959.0,63958.0,0.078141]
[1724514056113,0.0002347,63959.0,63958.0,0.079141]
[1724514056420,0.0092347,63959.0,63958.0,0.079141]
[1724514056922,0.31631947,63977.0,63971.0,0.078125]
[1724514056923,0.438922,63974.0,63971.0,0.078125]
[1724514057524,0.63224,63977.0,63970.0,0.3608]
[1724514057525,0.00144,63977.0,63970.0,0.3608]
[1724514057718,0.3608,63980.0,63970.0,0.3608]
[1724514057719,0.3608,63980.0,63978.0,0.078116]
[1724514059027,0.3688,63980.0,63978.0,0.079116]
[1724514061018,0.3608,63980.0,63978.0,0.078116]
[1724514061216,0.3608,63980.0,63978.0,0.090116]
[1724514061423,0.799715,63980.0,63978.0,0.012]
[1724514061620,0.799715,63980.0,63973.0,0.00023451]
[1724514061827,0.7216,63980.0,63978.0,0.012]
[1724514062016,0.7216,63980.0,63978.0,0.090116]
[1724514062913,0.7216,63980.0,63978.0,0.078116]
[1724514063116,0.7216,63980.0,63978.0,0.086116]
[1724514064517,0.7216,63980.0,63978.0,0.078116]
[1724514064723,0.7216,63980.0,63979.0,0.078115]
[1724514065823,0.7216,63980.0,63979.0,0.081115]
[1724514065824,0.3608,63980.0,63979.0,0.081115]
[1724514067423,0.3608,63980.0,63979.0,0.078115]
[1724514067623,0.3608,63980.0,63979.0,0.082115]
[1724514068536,0.7216,63980.0,63979.0,0.004]
[1724514069131,1.59052,63980.0,63973.0,0.00023451]
[1724514069431,0.3608,63974.0,63973.0,0.00023451]
[1724514069620,0.438921,63974.0,63973.0,0.00023451]
[1724514069821,2.218921,63974.0,63973.0,0.00023451]
[1724514070128,2.218961,63974.0,63973.0,0.00023451]
[1724514071234,0.438961,63974.0,63973.0,0.00023451]
[1724514071736,2.218961,63974.0,63973.0,0.00023451]
[1724514072529,0.438961,63974.0,63973.0,0.00023451]
[1724514073535,0.36084,63974.0,63973.0,0.07835751]
[1724514074836,0.36084,63974.0,63973.0,0.08035751]
[1724514075235,0.36084,63974.0,63973.0,0.07835751]
[1724514075540,0.36084,63974.0,63973.0,0.08035751]
[1724514082245,0.40715947,63974.0,63973.0,0.08035751]
[1724514082451,0.36084,63974.0,63973.0,0.08035751]
[1724514083150,0.40724989,63974.0,63973.0,0.08035751]
[1724514083345,0.438961,63974.0,63973.0,0.08035751]
[1724514083652,0.438961,63974.0,63973.0,0.00223451]
[1724514087642,0.9853834,63974.0,63973.0,0.00223451]
[1724514087842,0.907921,63974.0,63973.0,0.00223451]
[1724514088050,0.909921,63974.0,63973.0,0.00023451]
[1724514088650,0.911921,63974.0,63973.0,0.00023451]
[1724514089252,0.910921,63974.0,63973.0,0.00023451]
[1724514089551,1.3491834,63974.0,63973.0,0.00023451]
[1724514090452,1.5691834,63974.0,63973.0,0.00023451]
[1724514090952,1.488721,63974.0,63973.0,0.00023451]
[1724514091140,1.494721,63974.0,63973.0,0.00123451]
[1724514091545,1.488721,63974.0,63973.0,0.00023451]
[1724514091747,1.5721834,63974.0,63973.0,0.00123451]
[1724514092248,1.5200485,63974.0,63973.0,0.00123451]
[1724514092753,1.0510885,63974.0,63973.0,0.00123451]
[1724514093547,1.10326531,63974.0,63973.0,0.00123451]
[1724514093949,1.0510878,63974.0,63973.0,0.00123451]
[1724514095845,1.5200478,63974.0,63973.0,0.00123451]
[1724514097559,0.7529668,63974.0,63973.0,0.00123451]
[1724514097755,0.72764,63974.0,63973.0,0.02565836]
[1724514097962,0.78966567,63974.0,63973.0,0.02565836]
[1724514098151,0.72764,63974.0,63973.0,0.02565836]
[1724514098352,0.78966567,63974.0,63973.0,0.02565836]
[1724514098554,0.78966567,63974.0,63973.0,0.10378136]
[1724514099148,0.06806567,63974.0,63973.0,0.10378136]
[1724514099354,0.00604,63974.0,63973.0,0.10378136]
[1724514099560,0.00604,63974.0,63973.0,0.1660659]
[1724514099955,0.04653229,63975.0,63973.0,0.0879429]
[1724514100156,0.04653229,63976.0,63974.0,0.02442385]
[1724514100359,0.04653229,63976.0,63973.0,0.06351905]
[1724514100360,0.04653229,63976.0,63975.0,0.19514385]
[1724514100554,0.06202567,63978.0,63977.0,0.078118]
[1724514100755,0.438911,63983.0,63979.0,0.078115]
[1724514101062,0.3608,63983.0,63982.0,0.078112]
[1724514101361,0.3608,63983.0,63982.0,0.10253423]
[1724514101558,0.3608,63983.0,63982.0,0.10257423]
[1724514102055,0.3608,63983.0,63982.0,0.10257307]
[1724514102364,0.3668,63983.0,63982.0,0.10357307]
[1724514103665,0.44432396,63983.0,63982.0,0.079152]
[1724514104056,0.43932396,63983.0,63982.0,0.079152]
[1724514104760,0.43932396,63983.0,63982.0,0.00104]
[1724514105151,0.38712351,63983.0,63982.0,0.00104]
[1724514105461,0.46523351,63983.0,63982.0,0.00104]
[1724514107467,0.54334351,63983.0,63982.0,0.00104]
[1724514107662,1.25600351,63983.0,63973.0,0.00023451]
[1724514107862,0.5808,63974.0,63973.0,0.00023451]
[1724514108163,0.658921,63974.0,63973.0,0.02466042]
[1724514108362,0.658961,63974.0,63973.0,0.02466042]
[1724514109271,0.658961,63974.0,63973.0,0.02666042]
[1724514109471,0.73644394,63974.0,63973.0,0.02666042]
[1724514109772,0.73644394,63974.0,63973.0,0.00223451]
[1724514110870,0.658961,63974.0,63973.0,0.00223451]
[1724514111071,0.658961,63974.0,63973.0,0.02666048]
[1724514111366,0.658961,63974.0,63973.0,0.02466048]
[1724514111571,0.658961,63974.0,63973.0,0.02666048]
[1724514112072,0.658961,63974.0,63973.0,0.02566048]
[1724514112272,0.658961,63974.0,63973.0,0.00123451]
[1724514112462,0.68428852,63974.0,63973.0,0.00123451]
[1724514113565,0.68428852,63974.0,63973.0,0.00023451]
[1724514113759,0.658961,63974.0,63973.0,0.00223451]
[1724514114670,0.6842887,63974.0,63973.0,0.00223451]
[1724514114871,0.3861677,63974.0,63973.0,0.00223451]
[1724514115060,0.42282533,63974.0,63973.0,0.08035751]
[1724514115574,0.40733154,63974.0,63973.0,0.12516678]
[1724514115771,0.40933158,63974.0,63973.0,0.12516678]
[1724514116166,0.40933158,63974.0,63973.0,0.07835751]
[1724514116464,0.40933158,63974.0,63973.0,0.14956623]
[1724514116771,0.36284,63974.0,63973.0,0.14956616]
[1724514117073,0.36284,63974.0,63973.0,0.10278046]
[1724514117274,0.36084,63974.0,63973.0,0.10478046]
[1724514117577,0.36084,63974.0,63973.0,0.08035751]
[1724514119474,0.36084,63974.0,63973.0,0.10478008]
[1724514120970,0.36084,63974.0,63973.0,0.08035751]
[1724514121170,0.36084,63974.0,63973.0,0.10478005]
[1724514121372,0.36084,63974.0,63973.0,0.15156575]
[1724514122776,4e-05,63974.0,63973.0,0.15156575]
[1724514123667,4e-05,63974.0,63973.0,0.12714321]
[1724514123972,0.04653158,63974.0,63973.0,0.10478009]
[1724514124374,0.04652894,63974.0,63973.0,0.10478009]
[1724514124677,4e-05,63974.0,63973.0,0.10478009]
[1724514124978,0.04652858,63974.0,63973.0,0.10478009]
[1724514125975,4e-05,63974.0,63973.0,0.10478009]
[1724514126569,0.04652858,63974.0,63973.0,0.10478009]
[1724514126966,0.04652858,63974.0,63973.0,0.10478091]
[1724514127170,4e-05,63974.0,63973.0,0.10478091]
[1724514130173,0.04654258,63974.0,63973.0,0.10478047]
[1724514130471,4e-05,63974.0,63973.0,0.10478047]
[1724514130678,0.04654448,63974.0,63973.0,0.10478047]
[1724514131077,4e-05,63974.0,63973.0,0.10478047]
[1724514132778,0.36084,63974.0,63973.0,0.10478047]
[1724514133480,0.36084,63974.0,63973.0,0.08035751]
[1724514133672,0.36084,63974.0,63973.0,0.1047813]
[1724514135280,0.4228657,63974.0,63973.0,0.1047813]
[1724514136777,0.36084,63974.0,63973.0,0.1047813]
[1724514138385,0.4228657,63974.0,63973.0,0.1047813]
[1724514138983,0.36084,63974.0,63973.0,0.1047813]
[1724514139185,0.72164,63974.0,63973.0,0.1047813]
[1724514139976,0.799761,63974.0,63973.0,0.1047813]
[1724514140372,0.72164,63974.0,63973.0,0.1047813]
[1724514140888,4e-05,63974.0,63973.0,0.1047813]
[1724514141186,0.72164,63974.0,63973.0,0.1047813]
[1724514142576,0.36084,63974.0,63973.0,0.1047813]
[1724514143687,0.36084,63974.0,63973.0,0.151567]
[1724514143688,0.42290888,63974.0,63973.0,0.151567]
[1724514144184,0.36084,63974.0,63973.0,0.1047813]
[1724514144387,0.42290888,63974.0,63973.0,0.1047813]
[1724514146288,0.36084,63974.0,63973.0,0.1047813]
[1724514146481,0.46428737,63974.0,63973.0,0.0266583]
[1724514147789,0.46428737,63974.0,63973.0,0.0246583]
[1724514148180,0.46428737,63974.0,63973.0,0.0266583]
[1724514148484,0.51654909,63974.0,63973.0,0.0266583]
[1724514148693,0.4642878,63974.0,63973.0,0.0266583]
[1724514149282,0.438961,63974.0,63973.0,0.0266583]
[1724514149481,0.51655082,63974.0,63973.0,0.0266583]
[1724514150286,0.51655082,63974.0,63973.0,0.0246583]
[1724514150587,0.51655082,63974.0,63973.0,0.0266583]
[1724514151182,0.438961,63974.0,63973.0,0.0266583]
[1724514151584,0.51654884,63974.0,63973.0,0.0266583]
[1724514151783,0.43842784,63974.0,63973.0,0.1047813]
[1724514151985,0.36084,63974.0,63973.0,0.1047813]
[1724514152482,0.36084,63974.0,63973.0,0.15163167]
[1724514152687,0.36084,63974.0,63973.0,0.14963167]
[1724514152889,0.36084,63974.0,63973.0,0.15163167]
[1724514153291,0.36084,63974.0,63973.0,0.14963167]
[1724514153479,0.36084,63974.0,63973.0,0.15163167]
[1724514153883,0.42292175,63974.0,63973.0,0.1047813]
[1724514154191,0.36084,63974.0,63973.0,0.15162847]
[1724514154996,0.36084,63974.0,63973.0,0.1047813]
[1724514155192,0.36084,63974.0,63973.0,0.15162948]
[1724514155492,0.36084,63974.0,63973.0,0.08035751]
[1724514155693,0.36084,63974.0,63973.0,0.10478108]
[1724514156189,0.42292223,63974.0,63973.0,0.10478108]
[1724514156791,0.42292445,63974.0,63973.0,0.10478108]
[1724514156997,0.36084,63974.0,63973.0,0.10478108]
[1724514157294,0.36084,63974.0,63973.0,0.15163055]
[1724514157496,0.36084,63974.0,63973.0,0.10478108]
[1724514158497,4e-05,63974.0,63973.0,0.10478108]
[1724514158790,0.36084,63974.0,63973.0,0.10478108]
[1724514158998,0.36084,63974.0,63973.0,0.15163055]
[1724514159189,0.36084,63974.0,63973.0,0.10478108]
[1724514160086,0.36084,63974.0,63973.0,0.15163433]
[1724514160388,0.36084,63974.0,63973.0,0.10478108]
[1724514162092,0.36084,63974.0,63973.0,0.16706562]
[1724514162292,0.36084,63974.0,63973.0,0.10278108]
[1724514162598,0.36084,63974.0,63973.0,0.10478108]
[1724514165398,0.36084,63974.0,63973.0,0.10478242]
[1724514165899,0.438961,63974.0,63973.0,0.10478242]
[1724514166105,0.438961,63974.0,63973.0,0.15163892]
[1724514166294,0.51654884,63974.0,63973.0,0.10478242]
[1724514167294,0.438961,63974.0,63973.0,0.15163892]
[1724514167899,0.438961,63974.0,63973.0,0.10478242]
[1724514168114,0.51654884,63974.0,63973.0,0.10478242]
[1724514168305,0.438961,63974.0,63973.0,0.15163892]
[1724514168500,0.438961,63974.0,63973.0,0.08035751]
[1724514168501,0.51654884,63974.0,63973.0,0.08035751]
[1724514168709,0.51654884,63974.0,63973.0,0.10478258]
[1724514169007,0.438961,63974.0,63973.0,0.15163942]
[1724514169192,0.438961,63974.0,63973.0,0.10278292]
[1724514169402,0.51654884,63974.0,63973.0,0.10478292]
[1724514171901,0.51654884,63974.0,63973.0,0.10478279]
[1724514175207,0.51654884,63974.0,63973.0,0.08035751]
[1724514175402,0.51654884,63974.0,63973.0,0.10278178]
[1724514175708,0.43842784,63974.0,63973.0,0.10478178]
[1724514175897,0.51654884,63974.0,63973.0,0.10478178]
[1724514177105,0.438961,63974.0,63973.0,0.10478178]
[1724514177304,0.438961,63974.0,63973.0,0.10278178]
[1724514177507,0.438961,63974.0,63973.0,0.10478178]
[1724514177700,0.46428775,63974.0,63973.0,0.10478178]
[1724514178619,0.46428775,63974.0,63973.0,0.08035751]
[1724514178812,0.438961,63974.0,63973.0,0.10478315]
[1724514179010,0.438961,63974.0,63973.0,0.10278296]
[1724514179308,0.438961,63974.0,63973.0,0.10478296]
[1724514179913,0.438961,63974.0,63973.0,0.1047827]
[1724514181115,0.438961,63974.0,63973.0,0.10478289]
[1724514182312,0.438961,63974.0,63973.0,0.02665989]
[1724514182708,0.4642881,63974.0,63973.0,0.02665989]
[1724514184320,0.4642881,63974.0,63973.0,0.02666041]
[1724514186014,0.438961,63974.0,63973.0,0.02466041]
[1724514186219,0.51655469,63974.0,63973.0,0.02466041]
[1724514186514,0.51655469,63974.0,63973.0,0.00123451]
[1724514186515,0.55428724,63974.0,63973.0,0.00123451]
[1724514186718,0.55428724,63974.0,63973.0,0.02566009]
[1724514186907,0.60656474,63974.0,63973.0,0.02566009]
[1724514187111,0.528961,63974.0,63973.0,0.02566009]
[1724514187313,0.55428741,63974.0,63973.0,0.02566009]
[1724514187513,0.55428772,63974.0,63973.0,0.02566009]
[1724514187715,0.55428772,63974.0,63973.0,0.00123451]
[1724514187913,0.55428772,63974.0,63973.0,0.02565993]
[1724514188115,0.46428772,63974.0,63973.0,0.07935751]
[1724514188323,0.438961,63974.0,63973.0,0.07935751]
[1724514188510,0.51656839,63974.0,63973.0,0.07935751]
[1724514188712,0.51656839,63974.0,63973.0,0.10378307]
[1724514189316,0.43844739,63974.0,63973.0,0.10378307]
[1724514189913,0.36084,63974.0,63973.0,0.10378307]
[1724514190113,0.43844739,63974.0,63973.0,0.10378307]
[1724514190309,0.36084,63974.0,63973.0,0.17506657]
[1724514190717,0.36084,63974.0,63973.0,0.26506657]
[1724514190927,0.36084,63974.0,63973.0,0.21820764]
[1724514191609,0.36084,63974.0,63973.0,0.26507115]
[1724514191815,0.36084,63974.0,63973.0,0.21820764]
[1724514192013,0.36084,63974.0,63973.0,0.12820764]
[1724514193011,0.43844739,63974.0,63973.0,0.12820764]
[1724514193418,0.36084,63974.0,63973.0,0.17507411]
[1724514193623,0.43844739,63974.0,63973.0,0.12820764]
[1724514195624,0.07764739,63974.0,63973.0,0.12820764]
[1724514195823,0.43844739,63974.0,63973.0,0.12820764]
[1724514197528,0.43844739,63974.0,63973.0,0.07935751]
[1724514197720,0.43844739,63974.0,63973.0,0.12820637]
[1724514197915,0.43844739,63974.0,63973.0,0.10378194]
[1724514198138,0.43844739,63974.0,63973.0,0.12820635]
[1724514198720,0.36084,63974.0,63973.0,0.17507282]
[1724514199120,0.36084,63974.0,63973.0,0.12820635]
[1724514199326,0.36084,63974.0,63973.0,0.17507282]
[1724514199923,0.36084,63974.0,63973.0,0.17507049]
[1724514200123,0.36084,63974.0,63973.0,0.12820635]
[1724514200329,0.36084,63974.0,63973.0,0.17506784]
[1724514200829,0.36084,63974.0,63973.0,0.12820635]
[1724514201030,0.36084,63974.0,63973.0,0.12820535]
[1724514201232,0.36084,63974.0,63973.0,0.1750671]
[1724514202118,0.36084,63974.0,63973.0,0.17506604]
[1724514202434,0.36084,63974.0,63973.0,0.12820535]
[1724514203225,0.36084,63974.0,63973.0,0.17506247]
[1724514203424,0.36084,63974.0,63973.0,0.12820535]
[1724514204034,0.36084,63974.0,63973.0,0.17506265]
[1724514204734,0.36084,63974.0,63973.0,0.12820535]
[1724514205134,0.36084,63974.0,63973.0,0.21820535]
[1724514205642,0.42292563,63974.0,63973.0,1.14964392]
[1724514205833,0.36084,63974.0,63973.0,1.08716535]
[1724514206130,4e-05,63974.0,63973.0,1.08716535]
[1724514207031,4e-05,63974.0,63973.0,0.68716535]
[1724514207236,4e-05,63974.0,63973.0,1.14962655]
[1724514207433,4e-05,63974.0,63973.0,0.74962655]
[1724514207633,4e-05,63974.0,63973.0,1.14962655]
[1724514208039,4e-05,63974.0,63973.0,0.70077871]
[1724514208236,0.04659175,63974.0,63973.0,1.14962325]
[1724514208435,0.04659175,63974.0,63973.0,1.14962327]
[1724514208436,0.04659264,63974.0,63973.0,1.14962327]
[1724514208937,0.04659264,63974.0,63973.0,0.74962327]
[1724514209436,0.04659264,63974.0,63973.0,1.14962327]
[1724514209633,0.04659264,63974.0,63973.0,1.08716207]
[1724514210031,0.04659264,63974.0,63973.0,1.13666207]
[1724514211333,0.04659264,63974.0,63973.0,1.11223979]
[1724514211536,0.04659264,63974.0,63973.0,1.13666207]
[1724514211737,4e-05,63974.0,63973.0,1.19912327]
[1724514212339,4e-05,63974.0,63973.0,1.13666207]
[1724514212638,4e-05,63974.0,63973.0,0.73666207]
[1724514213158,0.04659264,63974.0,63973.0,0.26770207]
[1724514213340,4e-05,63974.0,63973.0,0.73666207]
[1724514213648,0.04658257,63974.0,63973.0,0.73666207]
[1724514214434,0.13658257,63974.0,63973.0,0.17770207]
[1724514214837,0.13658257,63974.0,63973.0,0.15327979]
[1724514215037,0.13658257,63974.0,63973.0,0.17770213]
[1724514217047,4e-05,63974.0,63973.0,0.2401428]
[1724514217241,4e-05,63974.0,63973.0,0.17770213]
[1724514218135,4e-05,63974.0,63973.0,0.2401428]
[1724514218337,4e-05,63974.0,63973.0,0.21572046]
[1724514218540,4e-05,63974.0,63973.0,0.24014316]
[1724514218943,0.06212563,63974.0,63973.0,0.26456565]
[1724514219144,4e-05,63974.0,63973.0,0.17770249]
[1724514220340,0.078161,63974.0,63973.0,0.17770249]
[1724514221747,0.078161,63974.0,63973.0,0.12885751]
[1724514221946,0.078161,63974.0,63973.0,0.17770661]
[1724514223152,0.078161,63974.0,63973.0,0.09958361]
[1724514225147,0.438961,63974.0,63973.0,0.07515906]
[1724514225347,0.438961,63974.0,63973.0,0.17770525]
[1724514225543,0.36084,63974.0,63973.0,0.17770525]
[1724514225744,4e-05,63974.0,63973.0,0.24014592]
[1724514225946,4e-05,63974.0,63973.0,0.17770525]
[1724514226750,0.42290976,63974.0,63973.0,0.17770525]
[1724514226945,0.42290976,63974.0,63973.0,0.24016315]
[1724514227152,0.36084,63974.0,63973.0,0.24016315]
[1724514227344,0.36084,63974.0,63973.0,0.17770525]
[1724514227648,4e-05,63974.0,63973.0,0.73666525]
[1724514227947,4e-05,63974.0,63973.0,0.26770525]
[1724514228651,4e-05,63974.0,63973.0,0.26769971]
[1724514228951,4e-05,63974.0,63973.0,0.21885751]
[1724514229145,4e-05,63974.0,63973.0,0.24327861]
[1724514229549,4e-05,63974.0,63973.0,0.71223861]
[1724514229756,4e-05,63974.0,63973.0,0.73665971]
[1724514232648,4e-05,63974.0,63973.0,0.34579792]
[1724514233144,4e-05,63974.0,63973.0,0.9135854]
[1724514233351,0.04655424,63981.0,63973.0,1.16506545]
[1724514233548,0.00023451,63985.0,63982.0,0.078112]
[1724514233549,0.04655424,63983.0,63982.0,0.078112]
[1724514233751,0.04655424,63983.0,63982.0,0.2169542]
[1724514233955,0.00023451,63985.0,63982.0,0.2169542]
[1724514233956,0.04655424,63984.0,63983.0,0.07811]
[1724514234154,0.00023451,63985.0,63983.0,0.07811]
[1724514234155,0.06230591,63985.0,63983.0,0.1737645]
[1724514234352,0.1401804,63984.0,63983.0,0.1249223]
[1724514234555,0.1401804,63984.0,63983.0,0.04883904]
[1724514235458,0.1401804,63984.0,63983.0,0.04983904]
[1724514237761,0.5009804,63984.0,63983.0,0.04983904]
[1724514237946,0.5009804,63984.0,63983.0,0.02541991]
[1724514238147,0.5009804,63984.0,63983.0,0.04983982]
[1724514238961,0.4228714,63984.0,63983.0,0.12794982]
[1724514239161,0.3608,63984.0,63983.0,0.1279492]
[1724514239663,0.3608,63984.0,63983.0,0.12794822]
[1724514240066,0.3608,63984.0,63983.0,0.15236715]
[1724514240362,0.3608,63984.0,63983.0,0.12794786]
[1724514241155,0.40729082,63984.0,63983.0,0.12794786]
[1724514241663,0.3608,63984.0,63983.0,0.12794826]
[1724514242051,0.40729111,63984.0,63983.0,0.12794826]
[1724514242458,0.40729111,63984.0,63983.0,0.14120879]
[1724514243255,0.4072872,63984.0,63983.0,0.14120879]
[1724514243556,0.3608,63984.0,63983.0,0.14120879]
[1724514244358,0.438909,63984.0,63983.0,0.04983826]
[1724514244565,0.51651639,63984.0,63983.0,0.02541913]
[1724514244749,0.51651639,63984.0,63983.0,0.04984073]
[1724514244957,0.51651639,63984.0,63983.0,0.04984384]
[1724514246360,0.51651639,63984.0,63983.0,0.04437433]
[1724514246361,1.38539639,63984.0,63983.0,0.04437433]
[1724514246562,0.07811,63983.0,63973.0,0.00023451]
[1724514246860,0.3608,63974.0,63973.0,0.00023451]
[1724514247070,0.3608,63974.0,63973.0,0.04908547]
[1724514247664,0.3608,63974.0,63973.0,0.05208547]
[1724514247966,0.438921,63974.0,63973.0,0.05208547]
[1724514248555,0.438921,63974.0,63973.0,0.02765999]
[1724514248867,0.438921,63974.0,63973.0,0.04908565]
[1724514249069,0.438921,63974.0,63973.0,0.05208565]
[1724514250570,0.50086523,63974.0,63973.0,0.05208565]
[1724514251357,0.438921,63974.0,63973.0,0.05208565]
[1724514251564,0.438921,63974.0,63973.0,0.00323451]
[1724514251769,0.438921,63974.0,63973.0,0.05208437]
[1724514252074,0.50086523,63974.0,63973.0,0.05208437]
[1724514252867,0.50086523,63974.0,63973.0,0.02765944]
[1724514253172,0.50086523,63974.0,63973.0,0.0520851]
[1724514253367,0.50086523,63974.0,63973.0,0.05208479]
[1724514253565,0.50086523,63974.0,63973.0,0.02765944]
[1724514255169,0.50086523,63974.0,63973.0,0.0520851]
[1724514255885,0.50086523,63974.0,63973.0,0.0520849]
[1724514256175,0.438921,63974.0,63973.0,0.02765944]
[1724514256374,0.50084738,63974.0,63973.0,0.05208517]
[1724514256570,0.438921,63974.0,63973.0,0.05208517]
[1724514257868,0.438921,63974.0,63973.0,0.00323451]
[1724514258165,0.438921,63974.0,63973.0,0.05208355]
[1724514258363,0.438921,63974.0,63973.0,0.05208346]
[1724514258875,0.438921,63974.0,63973.0,0.0765079]
[1724514259667,0.438921,63974.0,63973.0,0.05208338]
[1724514261376,0.48536013,63974.0,63973.0,0.05208253]
[1724514262280,0.438921,63974.0,63973.0,0.05208253]
[1724514262478,0.3608,63974.0,63973.0,0.13020453]
[1724514264176,0.3608,63974.0,63973.0,0.22020453]
[1724514264373,0.3608,63974.0,63973.0,0.26701683]
[1724514264879,0.09,63983.0,63973.0,0.26701683]
[1724514264880,0.04643913,63980.0,63973.0,0.14208253]
[1724514265083,0.04643913,63980.0,63977.0,0.09]
[1724514265270,0.04643913,63980.0,63978.0,0.04884802]
[1724514265477,0.04643913,63980.0,63979.0,0.04884802]
[1724514265688,0.04643913,63980.0,63979.0,0.04888802]
[1724514265885,0.04643913,63980.0,63979.0,0.12700302]
[1724514266485,0.12455213,63981.0,63980.0,0.078114]
[1724514266679,0.12455213,63981.0,63980.0,0.12696202]
[1724514267479,0.12455213,63981.0,63980.0,0.12700202]
[1724514267781,0.12455213,63981.0,63980.0,0.12699632]
[1724514267992,0.12555213,63981.0,63980.0,0.12699632]
[1724514268187,0.079113,63981.0,63980.0,0.12699632]
[1724514268682,0.001,63981.0,63980.0,0.12699632]
[1724514268881,0.001,63981.0,63980.0,0.21699632]
[1724514269082,0.04746557,63981.0,63980.0,0.21699632]
[1724514269277,0.001,63981.0,63980.0,0.21699632]
[1724514269588,0.001,63981.0,63980.0,0.21699531]
[1724514270377,0.04746557,63981.0,63980.0,0.12699531]
[1724514270776,0.001,63981.0,63980.0,0.12699531]
[1724514271087,0.001,63981.0,63980.0,0.14010979]
[1724514275683,0.04745791,63981.0,63980.0,0.14010979]
[1724514275988,0.001,63981.0,63980.0,0.14010979]
[1724514277788,0.001,63981.0,63980.0,0.14011002]
[1724514278791,0.3618,63981.0,63980.0,0.1156901]
[1724514278981,0.3618,63981.0,63980.0,0.14011149]
[1724514279490,0.50183938,63981.0,63980.0,0.06199749]
[1724514279681,0.50183938,63981.0,63980.0,0.0619976]
[1724514279985,0.439913,63981.0,63980.0,0.0619976]
[1724514280179,0.51737779,63981.0,63980.0,0.01315471]
[1724514280384,0.439913,63981.0,63980.0,0.01315471]
[1724514280682,0.46523819,63981.0,63980.0,4e-05]
[1724514281282,0.439913,63981.0,63980.0,4e-05]
[1724514281482,0.51735221,63981.0,63980.0,4e-05]
[1724514282189,0.439913,63981.0,63980.0,4e-05]
[1724514282385,0.51735663,63981.0,63980.0,4e-05]
[1724514282593,0.439913,63981.0,63980.0,4e-05]
[1724514282886,0.51735677,63981.0,63980.0,4e-05]